[Event "Prague Festival Open 2022"]
[Site "Prague"]
[Date "2022.06.16"]
[Round "8.11"]
[White "Iniyan, P."]
[Black "Nemec, Jachym"]
[Result "1-0"]
[ECO "D47"]
[WhiteElo "2518"]
[BlackElo "2367"]
[Annotator "TA"]
[PlyCount "93"]
[EventDate "2022.06.10"]
[EventType "swiss"]
[EventCountry "CZE"]
[SourceTitle "playchess.com"]
[Source "ChessBase"]
[SourceQuality "1"]
[TimeControl "40/5400+30:1800+30"]

{[%evp 15,93,0,9,10,22,31,37,26,18,23,18,0,5,0,0,-8,-20,-62,6,3,7,9,8,8,6,6,7,10,12,12,52,37,50,54,66,38,71,60,67,58,54,50,52,21,30,30,24,20,164,177,177,173,168,169,164,171,219,220,263,270,259,235,256,272,358,316,361,351,350,336,333,328,359,365,545,545,795,777,668,620]} 1. d4 {[%emt 0:00:18]} d5 {[%emt 0:00:05]} 2. c4 {[%emt 0:00:07]} c6 {[%emt 0:00:06]} 3. Nf3 {[%emt 0:00:07]} Nf6 {[%emt 0:00:06]} 4. Nc3 {[%emt 0:00:11]} e6 {[%emt 0:00:07]} 5. e3 {[%emt 0:00:16]} Nbd7 {[%emt 0:00:11]} 6. Bd3 {[%emt 0:00:09]} dxc4 {[%emt 0:00:54]} 7. Bxc4 {[%emt 0:00:08]} b5 {[%emt 0:00:06]} 8. Bd3 {[%emt 0:00:10]} Bd6 {[%emt 0:00:37]} 9. O-O {[%emt 0:05:48] D47: Semi-Slav: Meran System.} Bb7 {[%emt 0:00:26]} 10. e4 {[%emt 0:04:35] [#] And now e5 would win.} e5 {[%emt 0:01:51]} 11. dxe5 {[%emt 0:00:12] White is slightly better.} Nxe5 {[%emt 0:01:03]} 12. Nxe5 {[%emt 0:02:46]} Bxe5 {[%emt 0:00:20]} 13. Kh1 {[%emt 0:15:16] [#]} Qd7 $146 {[%emt 0:10:00]} ({Predecessor:} 13... O-O 14. f4 Bxc3 15. bxc3 c5 16. e5 c4 17. Bxc4 bxc4 18. exf6 Qxf6 19. Qd4 Qg6 {0-1 (32) Anu,B (2002)-Bayarmaa,B (2077) Govi Altai 2014}) 14. Bc2 {[%emt 0:06:42]} (14. f4 Bxc3 15. bxc3 O-O-O $15) 14... Qxd1 {[%emt 0:05:58]} 15. Nxd1 {[%emt 0:00:09]} c5 {[%emt 0:02:31]} 16. Be3 {[%emt 0:19:12]} O-O {[%emt 0:13:57]} ({Don't play} 16... Nxe4 17. Bxe4 (17. f3 Nf6 $11) 17... Bxe4 18. Re1 $11) ({Black should try} 16... Ng4 $1 $15) 17. f4 $11 {[%emt 0:03:14]} Bd4 {[%emt 0:02:50]} 18. Bxd4 {[%emt 0:00:13]} cxd4 {[%emt 0:00:05]} 19. Nf2 {[%emt 0:00:09]} Rfe8 {[%emt 0:02:16][%cal Rf6e4]} 20. Rfe1 {[%emt 0:00:40]} Rac8 {[%emt 0:06:03]} 21. Bd3 {[%emt 0:00:29]} a6 {[%emt 0:01:02]} 22. Rad1 {[%emt 0:03:20]} Ba8 {[%emt 0:03:52]} 23. Kg1 {[%emt 0:01:57]} g6 {[%emt 0:03:56]} 24. Bb1 {[%emt 0:03:11]} Rcd8 {[%emt 0:00:56]} 25. g3 {[%emt 0:13:08]} Re7 {[%emt 0:05:37]} 26. Rd2 {[%emt 0:00:18]} Ne8 {[%emt 0:02:52]} 27. Red1 {[%emt 0:04:47]} Red7 {[%emt 0:02:48]} 28. Nd3 {[%emt 0:07:10]} Rc7 {[%emt 0:02:49] Inhibits Nc5.} ({Less strong is} 28... Bxe4 29. Ne5 Bxb1 30. Nxd7 Rxd7 31. Rxb1 $16) 29. Nb4 {[%emt 0:00:07]} a5 {[%emt 0:03:29]} 30. Nd5 {[%emt 0:00:06]} Bxd5 {[%emt 0:00:50]} 31. Rxd4 {[%emt 0:00:06][%mdl 64] [#] Pin} Rcd7 {[%emt 0:01:53] A mistake that costs the game.} 32. Rxd5 $18 {[%emt 0:02:52]} Rxd5 {[%emt 0:00:08]} 33. Rxd5 {[%emt 0:02:40]} ({Don't take} 33. exd5 $6 Nf6 $14) 33... Rxd5 {[%emt 0:00:07]} 34. exd5 {[%emt 0:00:03][%mdl 4096] Endgame KB-KN} Kf8 {[%emt 0:13:49]} 35. Bd3 {[%emt 0:00:45]} b4 {[%emt 0:01:12]} (35... Ke7 {keeps fighting.}) 36. Kf2 {[%emt 0:00:06]} Ke7 {[%emt 0:00:08]} 37. Ke3 {[%emt 0:00:04]} Kd6 {[%emt 0:00:17]} 38. Kd4 {[%emt 0:00:06]} Nf6 {[%emt 0:01:06]} 39. Be2 {[%emt 0:02:15] Prevents Ng4.} Nxd5 {[%emt 0:00:48]} 40. Bc4 {[%emt 0:00:06]} Nf6 {[%emt 0:02:14]} 41. Bxf7 {[%emt 0:31:16]} Ng4 {[%emt 0:30:40]} 42. Bg8 {[%emt 0:00:44]} Nf6 {[%emt 0:00:15]} 43. Bc4 {[%emt 0:02:44]} Ng4 {[%emt 0:01:19]} 44. h3 {[%emt 0:00:26]} Nf2 {[%emt 0:00:19]} (44... Nf6 {was worth a try.} 45. g4 h6) 45. Be2 {[%emt 0:03:00] White is clearly winning.} Nxh3 {[%emt 0:01:45]} 46. Ke3 {[%emt 0:00:06] Against Nf2} Ng1 {[%emt 0:04:44]} 47. Bf1 {[%emt 0:00:29] Weighted Error Value: White=0.05 (flawless) /Black=0.26 (precise)} 1-0

[Event "Prague Festival Open 2022"]
[Site "Prague"]
[Date "2022.06.16"]
[Round "8.12"]
[White "Lye, Lik Zang"]
[Black "Omelja, Artem"]
[Result "0-1"]
[ECO "D36"]
[WhiteElo "2358"]
[BlackElo "2515"]
[Annotator "TA"]
[PlyCount "140"]
[EventDate "2022.06.10"]
[EventType "swiss"]
[EventCountry "CZE"]
[SourceTitle "playchess.com"]
[Source "ChessBase"]
[SourceQuality "1"]
[TimeControl "40/5400+30:1800+30"]

{[%evp 18,140,12,13,20,6,10,6,9,13,26,17,16,-10,-10,-21,-11,-19,-14,-17,-27,-20,-22,-39,-19,-25,-23,-27,-13,-20,-11,-14,-4,-6,0,-8,-14,-21,-21,-67,-50,-52,-37,-56,-46,-151,-147,-291,-287,-291,-201,-201,-201,-201,-201,-201,-179,-201,-201,-201,-201,-201,-201,-201,-201,-201,-201,-201,-201,-201,-201,-201,-201,-3726,-2112,-29955,-29955,-6601,-5591,-29960,-29964,-29964,-29966,-29966,-29967,-29965,-29964,-29962,-29964,-29965,-29966,-29970,-29967,-29967,-141,-29968,-29965,-29965,-29967,-29967,-29968,-29968,-29965,-29969,-29971,-29970,-29971,-29972,-29973,-29975,-29976,-29976,-29977,-29977,-29978,-29978,-29979,-29979,-29980,-29980,-29981,-29981,-29982,-29990,-29991]} 1. d4 {[%emt 0:00:03]} d5 {[%emt 0:00:18]} 2. c4 {[%emt 0:00:10]} e6 {[%emt 0:00:17]} 3. Nc3 {[%emt 0:00:10]} Nf6 {[%emt 0:00:50]} 4. cxd5 {[%emt 0:00:23]} exd5 {[%emt 0:00:19]} 5. Bg5 {[%emt 0:00:16]} c6 {[%emt 0:00:14]} 6. e3 {[%emt 0:00:25]} h6 {[%emt 0:00:08]} 7. Bh4 {[%emt 0:01:07]} Be7 {[%emt 0:00:17]} 8. Bd3 {[%emt 0:01:19]} O-O {[%emt 0:00:18]} 9. Qc2 {[%emt 0:00:48] 9.Nge2 is more fashionable.} Re8 {[%emt 0:00:56]} 10. Nf3 {[%emt 0:01:42]} Ne4 {[%emt 0:01:22] D36: Queen's Gambit Declined: Exchange Variation: Main line (5 Bg5 c6 6 Qc2).} 11. Bxe7 {[%emt 0:03:44]} Qxe7 {[%emt 0:00:10]} 12. Bxe4 {[%emt 0:01:11]} dxe4 {[%emt 0:00:09] The position is equal.} 13. Nd2 {[%emt 0:05:44]} Bf5 {[%emt 0:00:57]} 14. O-O {[%emt 0:02:13]} Nd7 {[%emt 0:05:39]} 15. f3 {[%emt 0:08:36][%cal Rf3e4]} Nf6 {[%emt 0:00:22]} (15... Qg5 {looks sharper.} 16. Ndxe4 Qxe3+ 17. Qf2 Qf4) 16. fxe4 {[%emt 0:03:45]} Bxe4 {[%emt 0:00:11]} 17. Ndxe4 {[%emt 0:00:25]} Nxe4 {[%emt 0:00:13]} 18. Nxe4 {[%emt 0:00:28]} Qxe4 {[%emt 0:00:08]} 19. Qxe4 {[%emt 0:00:17]} Rxe4 $11 {[%emt 0:00:11][%mdl 4096] Endgame KRR-KRR} 20. Rf3 {[%emt 0:01:04] [#]} Rd8 $146 {[%emt 0:01:06]} ({Predecessor:} 20... Rae8 21. Kf2 g5 22. h3 f5 23. Rd1 g4 24. hxg4 fxg4 25. Rf4 Rxe3 26. Rxg4+ Kh7 {½-½ (37) Polich,S-Pulyaev,V (2131) Dnipropetrovsk 2005}) 21. b4 {[%emt 0:07:10]} Rd5 {[%emt 0:01:05]} 22. a4 {[%emt 0:03:13]} f6 {[%emt 0:05:24]} 23. Ra3 {[%emt 0:04:58]} Kf7 {[%emt 0:00:32]} 24. Rf1 {[%emt 0:01:38]} Ke6 {[%emt 0:04:45]} 25. Rc1 {[%emt 0:02:17]} Kd6 {[%emt 0:02:14]} 26. Rb3 {[%emt 0:03:57]} f5 {[%emt 0:03:54]} 27. g3 {[%emt 0:07:39] Against f4} g5 {[%emt 0:01:44]} 28. b5 {[%emt 0:07:29]} (28. Kg2 $11 {feels stronger.}) 28... c5 {[%emt 0:03:38]} 29. dxc5+ $1 {[%emt 0:11:34]} Rxc5 {[%emt 0:00:30]} 30. Rd3+ {[%emt 0:01:00]} Rd5 {[%emt 0:00:09]} 31. Rxd5+ {[%emt 0:00:28]} (31. Ra3 $1 $15) 31... Kxd5 $15 {[%emt 0:00:08] KR-KR} 32. Rc7 {[%emt 0:02:48]} (32. Rd1+ $17 Ke5 33. Rd7) 32... Rxa4 $19 {[%emt 0:00:13]} (32... Rxe3 33. Rxb7 Re1+ 34. Kf2 $14) 33. Rxb7 {[%emt 0:00:21]} Ra1+ {[%emt 0:02:10]} 34. Kf2 {[%emt 0:01:01]} Ra2+ {[%emt 0:00:07]} 35. Kg1 {[%emt 0:00:43]} Ke4 $1 {[%emt 0:00:48] And now ...Kf3 would win.} 36. Rf7 {[%emt 0:00:41]} h5 {[%emt 0:19:06]} (36... Kxe3 37. Rxf5 Ra5 38. Rf7 $11) 37. Rf6 {[%emt 0:01:49]} Rb2 {[%emt 0:00:40]} (37... Kxe3 38. Rxf5 Ra1+ 39. Kg2 $11) 38. Rf7 {[%emt 0:01:26]} Rxb5 {[%emt 0:09:37]} 39. Rxa7 {[%emt 0:00:25]} Rb1+ $1 {[%emt 0:00:24]} (39... Kxe3 40. Ra3+ Ke4 41. Kg2) 40. Kf2 {[%emt 0:01:52]} Rb2+ {[%emt 0:00:09]} 41. Kg1 {[%emt 0:30:29]} Kf3 $1 {[%emt 0:30:48][%cal Rb2b1]} (41... Kxe3 42. h3 $17) 42. Ra1 {[%emt 0:01:34] Inhibits Rb1+.} Rg2+ {[%emt 0:05:22]} ({Stronger than} 42... Kxe3 43. h3) 43. Kh1 {[%emt 0:00:52][%cal Oe3e4]} Re2 {[%emt 0:00:45]} 44. Kg1 {[%emt 0:04:47]} Rxe3 {[%emt 0:02:13]} ({Worse is} 44... Kxe3 45. Ra5) 45. Rf1+ $2 {[%emt 0:01:25]} (45. Kf1) 45... Kg4 {[%emt 0:01:26]} 46. Rf2 {[%emt 0:06:05]} Rf3 $1 {[%emt 0:00:40]} 47. Ra2 {[%emt 0:00:42] [#]} Kh3 $1 {[%emt 0:00:37] ( -> ...g4)} 48. Ra5 {[%emt 0:01:13] [#]} g4 $1 {[%emt 0:05:00]} 49. Rb5 {[%emt 0:00:00]} Ra3 {[%emt 0:00:00]} ({Don't go for} 49... h4 $2 50. gxh4 Kxh4 51. Kg2 $19) 50. Rxf5 {[%emt 0:00:00]} Ra1+ {[%emt 0:00:00]} 51. Kf2 {[%emt 0:00:00]} Ra2+ {[%emt 0:00:00]} 52. Kg1 {[%emt 0:00:00]} Rg2+ {[%emt 0:00:00]} 53. Kf1 {[%emt 0:00:00]} Rxh2 {[%emt 0:00:00]} 54. Rxh5+ {[%emt 0:00:00]} Kxg3 {[%emt 0:00:00]} 55. Rg5 {[%emt 0:00:00]} Rh1+ {[%emt 0:00:00]} 56. Ke2 {[%emt 0:00:00] White does not recover from this.} Rh8 {[%emt 0:00:00] Black mates.} 57. Kf1 {[%emt 0:00:00]} Rf8+ {[%emt 0:00:00]} 58. Kg1 {[%emt 0:00:00]} Ra8 {[%emt 0:00:00][%cal Ra8a1]} 59. Kf1 {[%emt 0:00:00]} Ra1+ {[%emt 0:00:00]} 60. Ke2 {[%emt 0:00:00]} Rg1 {[%emt 0:00:00]} 61. Rg8 {[%emt 0:01:43]} Kh2 {[%emt 0:00:00]} 62. Rg7 {[%emt 0:01:19]} g3 {[%emt 0:00:00][%cal Bg4g3,Bg3g2][%mdl 32]} 63. Kf3 {[%emt 0:00:21]} Rf1+ {[%emt 0:00:00]} 64. Ke2 {[%emt 0:00:14]} Rf8 {[%emt 0:00:00]} 65. Rh7+ {[%emt 0:00:10]} Kg1 {[%emt 0:00:00]} 66. Rg7 {[%emt 0:00:06]} g2 {[%emt 0:00:00]} 67. Rh7 {[%emt 0:00:42]} Re8+ {[%emt 0:00:00]} 68. Kd3 {[%emt 0:00:14]} Re5 {[%emt 0:00:00]} 69. Kd4 {[%emt 0:00:32]} Rg5 {[%emt 0:00:00]} 70. Ke3 {[%emt 0:00:36]} Kf1 {[%emt 0:00:00] Weighted Error Value: White=0.52/Black=0.02 (flawless)} 0-1

[Event "Prague Festival Open 2022"]
[Site "Prague"]
[Date "2022.06.17"]
[Round "9.1"]
[White "Stefansson, Hannes"]
[Black "Motylev, Alexander"]
[Result "0-1"]
[ECO "C54"]
[WhiteElo "2534"]
[BlackElo "2633"]
[Annotator "TA"]
[PlyCount "92"]
[EventDate "2022.06.10"]
[EventType "swiss"]
[EventCountry "CZE"]
[SourceTitle "playchess.com"]
[Source "ChessBase"]
[SourceQuality "1"]
[TimeControl "40/5400+30:1800+30"]

{[%evp 10,92,17,12,27,14,27,10,39,38,33,29,29,34,39,12,16,7,24,0,11,7,25,18,14,13,47,62,49,52,45,32,21,-26,-26,-26,-26,-43,-49,-60,-32,-52,-66,-61,-57,-73,-66,-74,-52,-28,-43,-32,-52,-328,-318,-318,-323,-330,-330,-330,-330,-330,-325,-484,-452,-560,-554,-549,-524,-552,-552,-529,-515,-720,-710,-677,-662,-580,-479,-640,-610,-667,-573,-687,-654]} 1. e4 {[%emt 0:00:07]} e5 {[%emt 0:00:08]} 2. Nf3 {[%emt 0:00:19]} Nc6 {[%emt 0:00:04]} 3. Bc4 {[%emt 0:00:37]} Bc5 {[%emt 0:00:06]} 4. c3 {[%emt 0:00:57]} Nf6 {[%emt 0:00:06]} 5. d3 {[%emt 0:00:23]} d6 {[%emt 0:00:07]} 6. O-O {[%emt 0:00:49]} a5 {[%emt 0:00:05] C54: Giuoco Piano: 4 c3 Nf6, main lines with 5 d4 and 5 d3.} 7. Re1 {[%emt 0:01:28]} Ba7 {[%emt 0:00:46]} 8. Na3 {[%emt 0:03:28]} O-O {[%emt 0:01:28] The position is equal.} 9. Bg5 {[%emt 0:03:37]} h6 {[%emt 0:00:40]} 10. Bh4 {[%emt 0:01:25]} g5 {[%emt 0:00:13]} 11. Bg3 {[%emt 0:02:24] [#]} g4 $146 {[%emt 0:00:28]} ({Predecessor:} 11... Bg4 12. Nc2 Bh5 13. h3 Kg7 14. Ne3 Ne7 15. Bb3 Qd7 16. Bc2 Bxe3 17. Rxe3 Ng6 {½-½ (50) Duda,J (2743)-Anton Guijarro,D (2679) Wijk aan Zee 2021}) 12. Nh4 {[%emt 0:05:43]} (12. Bh4 $5 {[%cal Rf3d2]}) 12... Nh5 {[%emt 0:01:18]} 13. Nc2 {[%emt 0:04:39]} Qg5 {[%emt 0:00:11]} 14. Ne3 {[%emt 0:02:54]} Bxe3 {[%emt 0:00:37]} 15. Rxe3 {[%emt 0:03:20]} Ne7 {[%emt 0:07:56]} 16. d4 {[%emt 0:10:22]} Nf4 {[%emt 0:10:27]} 17. Re1 {[%emt 0:03:36]} Kh7 {[%emt 0:14:49]} 18. Bxf4 {[%emt 0:05:48]} exf4 {[%emt 0:01:14]} 19. g3 {[%emt 0:00:22]} f3 {[%emt 0:01:41]} 20. Bd3 {[%emt 0:03:39][%cal Oh2h3]} (20. a4 $5 {[%cal Rd1b3]}) 20... Kg7 {[%emt 0:02:29]} 21. c4 {[%emt 0:00:57]} (21. Qb3 $142) 21... Nc6 $11 {[%emt 0:04:09]} 22. Bc2 {[%emt 0:16:21]} Qf6 {[%emt 0:07:16]} 23. e5 {[%emt 0:01:12]} dxe5 {[%emt 0:00:18]} 24. Qd3 {[%emt 0:00:07][%csl Gc2][%cal Rd3h7]} Rh8 {[%emt 0:00:34] Inhibits Qh7+.} 25. dxe5 {[%emt 0:00:14]} Nxe5 {[%emt 0:02:16]} 26. Qe4 {[%emt 0:00:22]} Nc6 {[%emt 0:03:13]} 27. Rad1 {[%emt 0:06:00]} Be6 {[%emt 0:02:05]} 28. h3 {[%emt 0:00:50]} h5 {[%emt 0:02:44]} (28... Qxb2 29. Ng6 $1 Rhe8 30. Nh4 $11) (28... gxh3 29. Re3 $11) 29. Ba4 $1 {[%emt 0:04:43]} Rad8 {[%emt 0:11:34]} (29... Qxb2 30. Bxc6 bxc6 31. Rd4 $14) 30. Bxc6 {[%emt 0:00:50]} bxc6 {[%emt 0:00:03]} 31. Qxc6 $2 {[%emt 0:01:57][%mdl 8192] White does not recover from this.} (31. b3 $1 $15) 31... Rxd1 $19 {[%emt 0:01:05]} (31... Qxb2 32. Qc5 Qf6 33. Rxd8 Rxd8 34. Re5 $14) (31... gxh3 32. Qxc7 Rxd1 33. Rxd1 $14) 32. Rxd1 {[%emt 0:00:07]} Qe5 {[%emt 0:00:23][%cal Oh8d8] Inhibits Qc5. ...Rd8! is the strong threat.} (32... Qxb2 33. Qc5 Rh6 34. hxg4 $14 (34. Qg5+ Kh7 $11)) (32... gxh3 33. Qxc7 Rc8 34. Qxa5 $14) 33. Qb5 {[%emt 0:10:52]} ({Don't play} 33. hxg4 Rd8 $1 34. Rc1 (34. Rxd8 $2 Qe1+ 35. Kh2 Qxf2+ 36. Kh1 Qf1+ 37. Kh2 Qe2+ 38. Kh1 f2 $19) (34. Qxf3 $2 Bxg4 35. Rxd8 Bxf3 $19) 34... hxg4 $19) 33... Qxb5 {[%emt 0:03:37]} 34. cxb5 {[%emt 0:00:05][%mdl 4096] Endgame [#] KRB-KRN} a4 $1 {[%emt 0:00:26]} ({And not} 34... Bxa2 35. hxg4 hxg4 36. Nf5+ Kg6 37. Ne3 $17) 35. hxg4 {[%emt 0:00:12]} hxg4 {[%emt 0:00:07]} 36. Rc1 {[%emt 0:05:37]} (36. Rd4 $142 Rh5 37. Rb4) 36... Rd8 {[%emt 0:10:43] Black is clearly winning.} 37. b3 {[%emt 0:00:14]} ({Weaker is} 37. Rxc7 Rd1+ 38. Kh2 Rd2 $19) 37... axb3 {[%emt 0:02:20]} 38. axb3 {[%emt 0:00:04]} Rd7 {[%emt 0:00:19]} 39. Kf1 {[%emt 0:01:19]} Kf6 {[%emt 0:00:38]} 40. b4 {[%emt 0:00:57]} Rd4 {[%emt 0:07:51]} 41. Kg1 {[%emt 0:04:07]} Rc4 {[%emt 0:01:09]} 42. Rb1 {[%emt 0:00:30]} Ke7 {[%emt 0:02:42]} 43. Kf1 {[%emt 0:03:43]} Re4 {[%emt 0:01:49]} 44. Rc1 {[%emt 0:00:38]} Kd7 {[%emt 0:00:42]} 45. Rc5 {[%emt 0:02:33]} Rxb4 {[%emt 0:01:27] ( -> ...Rb1+)} 46. Ke1 {[%emt 0:00:05]} Re4+ {[%emt 0:02:40] Weighted Error Value: White=0.40/Black=0.06 (flawless)} 0-1

[Event "Prague Festival Open 2022"]
[Site "Prague"]
[Date "2022.06.17"]
[Round "9.2"]
[White "Petr, Martin"]
[Black "Alsina Leal, Daniel"]
[Result "1/2-1/2"]
[ECO "D78"]
[WhiteElo "2488"]
[BlackElo "2508"]
[Annotator "TA"]
[PlyCount "117"]
[EventDate "2022.06.10"]
[EventType "swiss"]
[EventCountry "CZE"]
[SourceTitle "playchess.com"]
[Source "ChessBase"]
[SourceQuality "1"]
[TimeControl "40/5400+30:1800+30"]

{[%evp 15,117,29,31,21,22,16,19,23,21,-13,-2,-7,0,0,0,0,0,0,0,0,-10,-16,-6,-27,-8,-10,0,0,0,-5,0,-43,-30,-47,-51,-50,-40,-47,-38,-42,-29,-30,-22,-22,-22,-26,-27,-29,0,0,0,-44,0,-18,-5,-9,77,106,132,0,0,0,0,0,0,-11,0,0,0,0,0,0,14,15,56,0,0,0,0,0,1,0,0,0,0,0,0,0,0,0,0,0,0,0,0,0,0,0,0,0,0,0,0,0]} 1. Nf3 {[%emt 0:00:03] Golod,V} Nf6 {[%emt 0:05:33]} 2. g3 {[%emt 0:00:11]} d5 {[%emt 0:00:14]} 3. Bg2 {[%emt 0:00:06]} g6 {[%emt 0:00:22]} 4. c4 {[%emt 0:02:48]} c6 {[%emt 0:02:40]} 5. b3 {[%emt 0:00:05]} Bg7 {[%emt 0:00:33]} 6. Bb2 {[%emt 0:00:08]} O-O {[%emt 0:01:29]} 7. O-O {[%emt 0:00:07]} Re8 {[%emt 0:14:02]} 8. d4 {[%emt 0:03:05]} Bf5 {[%emt 0:02:05]} 9. Nc3 {[%emt 0:03:40] D78: Fianchetto Grünfeld: 6 0-0 c6.} Ne4 {[%emt 0:09:34]} 10. Nh4 {[%emt 0:08:52]} Nxc3 {[%emt 0:01:16]} 11. Bxc3 {[%emt 0:01:13]} Be6 {[%emt 0:02:50] [#]} 12. c5 $146 {[%emt 0:00:23]} ({Predecessor:} 12. Qd3 Nd7 13. c5 f5 14. b4 Bf7 15. f4 b6 16. Nf3 a5 17. a3 axb4 18. axb4 {½-½ (34) Malakhov,V (2670)-Golod,V (2523) Bad Wiessee 2002 EXT 2003 [Golod,V]}) 12... Bc8 {[%emt 0:07:10]} 13. f4 {[%emt 0:03:47]} Nd7 {[%emt 0:06:07][%cal Bb8d7,Bd7f6,Bf6e4][%mdl 32]} 14. b4 {[%emt 0:03:59]} a5 {[%emt 0:05:57]} 15. a3 {[%emt 0:00:26]} axb4 {[%emt 0:01:29]} 16. axb4 {[%emt 0:00:06]} Rxa1 {[%emt 0:00:04]} 17. Qxa1 {[%emt 0:10:05]} Nf6 {[%emt 0:01:30]} 18. Nf3 {[%emt 0:09:02]} Ne4 {[%emt 0:09:03]} 19. Bb2 {[%emt 0:00:23]} f6 {[%emt 0:14:11]} 20. Qa7 {[%emt 0:07:49]} g5 {[%emt 0:00:43]} 21. fxg5 {[%emt 0:04:51]} fxg5 {[%emt 0:00:50]} 22. Qb8 {[%emt 0:00:06]} Rf8 {[%emt 0:00:59]} 23. Bc1 {[%emt 0:05:09]} h6 {[%emt 0:03:40]} 24. Ne5 {[%emt 0:06:32]} Rxf1+ {[%emt 0:01:03]} 25. Bxf1 {[%emt 0:00:06]} Qf8 $1 {[%emt 0:01:08] [#] ( -> ...Qf2+)} 26. Be3 {[%emt 0:00:07] Against Qf2+} Kh7 {[%emt 0:00:28] Inhibits Ng6.} 27. Nd3 {[%emt 0:10:41]} ({But not} 27. Bg2 $2 Nc3 28. Bf3 Nd1 $17) 27... Nc3 {[%emt 0:01:30] White must now prevent ...Nd1.} 28. Bf2 $1 {[%emt 0:00:05]} Nd1 {[%emt 0:02:34]} 29. e3 {[%emt 0:00:05]} Qf5 {[%emt 0:00:52]} (29... Nxf2 30. Nxf2 h5 31. Be2 $14) 30. Be2 {[%emt 0:07:28]} Nc3 {[%emt 0:00:05]} ({Don't do} 30... Nxf2 31. Nxf2 Qf8 32. Qc7 $16) 31. Bf1 {[%emt 0:00:07]} Nd1 {[%emt 0:00:05]} 32. Be2 {[%emt 0:04:39]} Nc3 {[%emt 0:00:43]} (32... Nxf2 33. Nxf2 Qf8 34. Qc7 $16) 33. Bf1 {[%emt 0:00:06]} Ne4 {[%emt 0:02:30]} 34. h3 {[%emt 0:01:08]} Nd2 {[%emt 0:03:00]} 35. g4 {[%emt 0:00:23]} Qe4 {[%emt 0:01:03]} 36. Be2 $16 {[%emt 0:03:38]} ({Don't play} 36. Qxc8 Nf3+ 37. Kg2 Nd2+ 38. Kg1 Nf3+ 39. Kh1 Nd2+ 40. Bg2 Qxd3 $14) 36... Qe6 {[%emt 0:00:27] [#]} 37. Ne5 {[%emt 0:02:32]} (37. Nb2 $1 $16) 37... Bxe5 {[%emt 0:00:21]} 38. dxe5 {[%emt 0:00:26]} Kg7 {[%emt 0:00:42]} 39. Bd3 {[%emt 0:01:07] Strongly threatening Bf5.} Ne4 {[%emt 0:00:28][%cal Oh6h5]} 40. Qc7 {[%emt 0:01:15]} Kf7 {[%emt 0:00:36]} 41. Qd8 {[%emt 0:05:50]} Bd7 {[%emt 0:12:50]} 42. Qh8 {[%emt 0:03:31]} Kg6 {[%emt 0:02:28]} 43. Be1 {[%emt 0:02:27]} Qf7 {[%emt 0:04:20]} 44. Qb8 {[%emt 0:05:06]} Be6 {[%emt 0:04:59]} 45. Be2 {[%emt 0:02:28]} ({Better is} 45. Kg2 $1 $14) 45... d4 $11 {[%emt 0:02:59] The position is equal.} 46. Qxb7 {[%emt 0:01:33]} Bd5 {[%emt 0:00:40] ...d3 is the strong threat.} 47. Qd7 {[%emt 0:03:42]} dxe3 {[%emt 0:01:15]} 48. e6 {[%emt 0:00:27]} Qxe6 {[%emt 0:04:11]} 49. Qxe6+ {[%emt 0:01:40]} Bxe6 {[%emt 0:00:01][%mdl 4096] Endgame KBB-KBN} 50. Bd3 {[%emt 0:00:11]} Bd5 {[%emt 0:00:01]} 51. Kf1 {[%emt 0:00:05]} Kf6 {[%emt 0:00:38]} 52. Ke2 {[%emt 0:01:07]} Nf2 {[%emt 0:00:41]} 53. Bxf2 {[%emt 0:01:29]} exf2 {[%emt 0:00:04]} 54. Kxf2 {[%emt 0:00:04] KB-KB} Ke5 {[%emt 0:00:23] Hoping for ...Kd4.} 55. Ke3 {[%emt 0:01:37]} Bg2 {[%emt 0:00:31]} 56. Bc2 {[%emt 0:02:19]} Bd5 {[%emt 0:01:27]} 57. Bd3 {[%emt 0:01:36]} Bg2 {[%emt 0:00:29]} 58. Bc2 {[%emt 0:00:25]} Bd5 {[%emt 0:00:34]} 59. Bd3 {[%emt 0:01:16] Weighted Error Value: White=0.09 (flawless) /Black=0.07 (flawless)} 1/2-1/2

[Event "Prague Festival Open 2022"]
[Site "Prague"]
[Date "2022.06.17"]
[Round "9.3"]
[White "Santiago, Yago De Moura"]
[Black "Garriga Cazorla, Pere"]
[Result "1/2-1/2"]
[ECO "D43"]
[WhiteElo "2498"]
[BlackElo "2495"]
[Annotator "TA"]
[PlyCount "48"]
[EventDate "2022.06.10"]
[EventType "swiss"]
[EventCountry "CZE"]
[SourceTitle "playchess.com"]
[Source "ChessBase"]
[SourceQuality "1"]
[TimeControl "40/5400+30:1800+30"]

{[%evp 13,48,11,3,-27,4,0,37,32,43,25,31,6,26,20,26,25,20,19,26,27,59,57,58,43,39,-18,-17,-18,-20,-22,-15,-36,-31,-13,-29,0,-12]} 1. d4 {[%emt 0:00:05]} d5 {[%emt 0:02:19]} 2. c4 {[%emt 0:00:20]} e6 {[%emt 0:00:07]} 3. Nf3 {[%emt 0:01:07]} Nf6 {[%emt 0:00:06]} 4. Nc3 {[%emt 0:00:13]} dxc4 {[%emt 0:00:21]} 5. Qa4+ {[%emt 0:00:38]} c6 {[%emt 0:03:05]} 6. Qxc4 {[%emt 0:00:09]} b5 {[%emt 0:00:05]} 7. Qd3 {[%emt 0:00:07]} a6 {[%emt 0:04:10]} 8. g4 $1 {[%emt 0:00:09][%cal Bg2g4,Bg4g5][%mdl 4] outshines the older 8.e4. D43: Semi-Slav: 5 Bg5 h6.} Bb7 {[%emt 0:05:13]} 9. g5 $1 {[%emt 0:01:28] [#]} Nfd7 $146 {[%emt 0:01:27]} ({Predecessor:} 9... Nd5 10. Bg2 Nd7 11. O-O c5 12. e4 Nxc3 13. bxc3 cxd4 14. cxd4 Bd6 15. Rd1 O-O {1-0 (49) Yakubboev,N (2604)-Sjugirov,S (2663) Chess.com INT 2021}) 10. Bg2 {[%emt 0:03:58] White is slightly better.} c5 {[%emt 0:03:59]} 11. dxc5 {[%emt 0:03:59]} Nc6 {[%emt 0:05:47]} 12. Be3 {[%emt 0:03:37]} Nb4 {[%emt 0:06:47]} 13. Qd2 {[%emt 0:06:07] Hoping for a3.} Bxc5 {[%emt 0:01:20]} 14. Rc1 {[%emt 0:00:58]} O-O {[%emt 0:19:36]} 15. O-O {[%emt 0:03:34]} Rc8 {[%emt 0:09:38]} 16. Rfd1 {[%emt 0:43:42]} Nd5 {[%emt 0:06:05]} 17. Nxd5 {[%emt 0:11:19]} Bxd5 {[%emt 0:00:07]} 18. Bxc5 {[%emt 0:00:19]} Nxc5 {[%emt 0:01:39]} 19. Rxc5 {[%emt 0:06:20]} Rxc5 $11 {[%emt 0:02:44]} 20. e4 $1 {[%emt 0:00:05] [#]} Qc8 $1 {[%emt 0:01:44] aiming for ...Rc2.} 21. exd5 {[%emt 0:00:31]} Rxd5 {[%emt 0:00:03]} 22. Qe2 {[%emt 0:02:11]} Rxd1+ {[%emt 0:00:07]} 23. Qxd1 {[%emt 0:00:05]} Rd8 {[%emt 0:00:04]} 24. Qe2 {[%emt 0:03:34]} Qc1+ {[%emt 0:01:52] Weighted Error Value: White=0.11 (very precise) /Black=0.10 (very precise)} 1/2-1/2